[Event "VII Totalizator Sportowy 2022"]
[Site "Bydgoszcz"]
[Date "2022.07.02"]
[Round "8.7"]
[White "Prokofiev, Valentyn"]
[Black "Jarmula, Lukasz"]
[Result "1-0"]
[ECO "A28"]
[WhiteElo "2362"]
[BlackElo "2459"]
[Annotator "TA"]
[PlyCount "131"]
[EventDate "2022.06.25"]
[EventType "swiss"]
[EventCountry "POL"]
[SourceTitle "playchess.com"]
[Source "ChessBase"]
[SourceQuality "1"]
[TimeControl "40/5400+30:1800+30"]

{[%evp 9,131,2,9,4,13,6,13,8,17,15,19,18,25,12,35,37,40,38,35,35,50,48,64,71,101,81,79,84,119,102,100,77,108,103,135,152,160,118,132,131,139,121,132,112,126,120,124,81,89,93,89,83,122,106,126,83,133,102,133,133,187,184,197,216,293,189,325,331,313,322,307,73,73,71,107,114,115,115,115,116,116,122,122,122,122,8,125,122,122,129,137,130,29963,29964,29965,29965,29965,29961,29960,29960,29963,29963,29967,29969,29969,29970,29972,29971,29969,29971,29977,29978,29978,29979,29980,29981,29981,29982,29982,29983,29987,29984,29984,29985]} 1. c4 {[%emt 0:00:01]} e5 {[%emt 0:00:19]} 2. Nc3 {[%emt 0:00:06]} Nf6 {[%emt 0:00:06]} 3. Nf3 {[%emt 0:00:03]} Nc6 {[%emt 0:00:09]} 4. e4 {[%emt 0:00:03]} Bb4 {[%emt 0:01:01]} 5. d3 {[%emt 0:00:05]} d6 {[%emt 0:00:39]} 6. a3 {[%emt 0:00:05] A28: English Opening: Four Knights Variation.} Bc5 {[%emt 0:01:46]} 7. b4 {[%emt 0:00:05]} Bb6 {[%emt 0:00:38]} 8. Na4 {[%emt 0:00:05] The position is equal.} Bg4 {[%emt 0:06:35]} 9. Nxb6 {[%emt 0:00:42]} axb6 {[%emt 0:00:34]} 10. Bb2 $1 {[%emt 0:00:09]} O-O {[%emt 0:04:49]} 11. Be2 {[%emt 0:00:39]} Bxf3 {[%emt 0:01:26]} 12. Bxf3 {[%emt 0:00:04]} Nd4 {[%emt 0:00:14]} 13. Bxd4 {[%emt 0:00:08]} exd4 {[%emt 0:00:07]} 14. O-O {[%emt 0:00:26] [#]} Kh8 $146 {[%emt 0:03:53]} ({Predecessor:} 14... Qd7 15. Qd2 Ra7 16. Qb2 Rfa8 17. b5 Qe7 18. Qxd4 Qe5 19. Qe3 Qb2 20. Qc1 Qd4 {0-1 (70) Rotstein,A (2481)-Repka,C (2523) Austria 2019}) 15. Be2 {[%emt 0:14:46][%cal Bf3e2,Be2g4,Bg4f5][%mdl 32]} g5 {[%emt 0:01:51]} 16. Bg4 {[%emt 0:05:32]} Rg8 {[%emt 0:01:30]} 17. Bf5 {[%emt 0:02:29]} Qe7 {[%emt 0:04:12]} 18. f4 {[%emt 0:07:35]} c5 {[%emt 0:04:20]} 19. fxg5 {[%emt 0:04:28]} Rxg5 {[%emt 0:00:12]} 20. Qf3 {[%emt 0:00:42]} Rag8 {[%emt 0:07:49]} 21. Ra2 {[%emt 0:00:58][%cal Ba1a2,Ba2b2,Bb2b7][%mdl 32]} Qe5 {[%emt 0:02:35]} 22. bxc5 {[%emt 0:02:26]} bxc5 {[%emt 0:00:56]} 23. Bh3 {[%emt 0:00:41]} R5g6 {[%emt 0:02:12]} 24. Rb2 {[%emt 0:01:18]} Rh6 {[%emt 0:10:33][%cal Of6g4]} 25. Rxb7 {[%emt 0:19:16]} Ng4 {[%emt 0:00:37] Inhibits Rf2.} 26. Bxg4 {[%emt 0:00:02]} Qxh2+ {[%emt 0:00:10]} 27. Kf2 {[%emt 0:00:01]} Qh4+ {[%emt 0:00:14]} 28. g3 {[%emt 0:00:07]} Qxg4 {[%emt 0:00:13]} 29. Qxg4 {[%emt 0:00:03]} Rxg4 {[%emt 0:00:11]} 30. Rxf7 $16 {[%emt 0:00:08][%mdl 4096] Endgame KRR-KRR} Rh2+ {[%emt 0:04:56] [#]} 31. Kf3 $1 {[%emt 0:01:07]} Rg6 {[%emt 0:01:21]} 32. Rb1 {[%emt 0:04:06]} Rd2 {[%emt 0:00:52]} ({Black should play} 32... Kg8 33. Rf5 Rh3) 33. Rb8+ {[%emt 0:02:09]} Rg8 {[%emt 0:00:08]} 34. Rb3 {[%emt 0:00:03]} Rd1 {[%emt 0:03:31]} (34... Rh2 $16 {might work better.}) 35. Kg2 {[%emt 0:01:19]} Rd2+ {[%emt 0:02:23]} 36. Kh3 {[%emt 0:06:08]} Ra8 {[%emt 0:01:34]} 37. Rd7 {[%emt 0:04:43]} Rc2 {[%emt 0:03:35]} (37... Ra2 $142 38. Rxd6 R2xa3 39. Rd8+ Rxd8 40. Rxa3 Rf8) 38. Rxd6 $18 {[%emt 0:04:41]} Rc3 {[%emt 0:00:51]} 39. Rdb6 {[%emt 0:00:01]} Rxa3 {[%emt 0:00:57]} 40. Rxa3 {[%emt 0:00:00]} (40. Rb8+ $18 Kg7 41. R3b7+ Kg6 42. Rb6+ Kg7 43. R8b7+ Kg8 44. Rc6) 40... Rxa3 {[%emt 0:00:00] KR-KR} 41. Rb5 {[%emt 0:00:08]} Rxd3 {[%emt 0:01:15]} 42. Rxc5 {[%emt 0:00:24]} Rc3 {[%emt 0:12:15]} 43. Kg4 {[%emt 0:03:45] Kf5 is the strong threat.} d3 {[%emt 0:00:28]} 44. Kf5 {[%emt 0:00:36] Intending Kf6 and mate.} d2 {[%emt 0:09:03]} 45. Rd5 {[%emt 0:00:11]} Rxc4 {[%emt 0:00:17][%cal Oc4c5] Threatens to win with ...Rc5!} 46. Rxd2 {[%emt 0:00:30] Black must now prevent Rd8+.} Rc3 {[%emt 0:03:15]} 47. e5 {[%emt 0:07:00]} (47. g4 $16) 47... Kg7 {[%emt 0:13:43]} (47... Rxg3 $11 {remains equal.} 48. Kf6 Rf3+ 49. Ke7 h5) 48. Rd7+ $16 {[%emt 0:02:30]} Kf8 {[%emt 0:00:28]} 49. g4 {[%emt 0:03:15]} Rf3+ {[%emt 0:01:09]} 50. Kg5 {[%emt 0:00:51] White is more active.} Re3 $2 {[%emt 0:00:27][%mdl 8192] This costs Black the game.} (50... Rh3 $16 51. Kf6 Rf3+ 52. Kg5 Rh3) 51. Rxh7 {[%emt 0:00:39] White mates.} Kg8 {[%emt 0:08:20]} 52. Re7 {[%emt 0:01:21]} Kf8 {[%emt 0:00:06]} 53. Re6 {[%emt 0:00:37]} Kf7 {[%emt 0:00:19]} 54. Rf6+ {[%emt 0:00:06]} Kg7 {[%emt 0:00:44]} 55. Kf5 {[%emt 0:00:29]} Rf3+ {[%emt 0:00:26] [#]} 56. Ke6 $1 {[%emt 0:00:07]} Rg3 {[%emt 0:00:06]} 57. Rf4 {[%emt 0:00:17]} Kg6 {[%emt 0:00:22]} 58. Rd4 {[%emt 0:03:00]} Re3 {[%emt 0:00:27]} 59. Rd5 {[%emt 0:01:02]} Re4 {[%emt 0:01:00]} 60. Kd7 {[%emt 0:00:31]} Rxg4 {[%emt 0:00:58]} 61. e6 {[%emt 0:00:23][%cal Be5e6,Be6e7][%mdl 32]} Kf6 {[%emt 0:00:48]} 62. e7 {[%emt 0:00:21]} Rg7 {[%emt 0:01:31]} 63. Rd6+ {[%emt 0:00:02]} Ke5 {[%emt 0:00:20]} 64. Rd1 {[%emt 0:00:21]} Kf6 {[%emt 0:00:12]} 65. Rf1+ {[%emt 0:00:03]} Ke5 {[%emt 0:00:11]} 66. Kd8 {[%emt 0:00:06] Weighted Error Value: White=0.19 (very precise) /Black=0.30} 1-0

[Event "VII Totalizator Sportowy 2022"]
[Site "Bydgoszcz"]
[Date "2022.07.02"]
[Round "8.8"]
[White "Licznerski, Lukasz"]
[Black "Sernecki, Franciszek"]
[Result "0-1"]
[ECO "C07"]
[WhiteElo "2439"]
[BlackElo "2272"]
[Annotator "TA"]
[PlyCount "98"]
[EventDate "2022.06.25"]
[EventType "swiss"]
[EventCountry "POL"]
[SourceTitle "playchess.com"]
[Source "ChessBase"]
[SourceQuality "1"]
[TimeControl "40/5400+30:1800+30"]

{[%evp 19,98,26,30,4,6,16,4,2,19,0,12,15,18,17,25,22,25,12,11,5,14,26,25,31,30,28,36,0,0,0,0,-14,24,0,22,8,46,0,53,31,45,23,16,31,62,11,9,0,0,0,0,0,0,0,0,0,0,-22,-9,-119,-59,-59,0,0,0,0,0,-113,-126,-222,-208,-222,-28,-410,-379,-503,-486,-541,-533,-660,-634]} 1. e4 {[%emt 0:07:27] Kortschnoj,V} e6 {[%emt 0:00:35]} 2. d4 {[%emt 0:00:11]} d5 {[%emt 0:00:05]} 3. Nd2 {[%emt 0:00:04]} c5 {[%emt 0:00:08]} 4. Ngf3 {[%emt 0:00:31]} cxd4 {[%emt 0:00:08]} 5. exd5 {[%emt 0:00:52]} Qxd5 {[%emt 0:00:20]} 6. Bc4 {[%emt 0:00:03]} Qd6 {[%emt 0:00:14]} 7. O-O {[%emt 0:00:03]} Nf6 {[%emt 0:00:09]} 8. Nb3 {[%emt 0:00:10]} Nc6 {[%emt 0:00:07]} 9. Nbxd4 {[%emt 0:00:03]} Nxd4 {[%emt 0:00:09]} 10. Nxd4 {[%emt 0:00:03]} Be7 {[%emt 0:00:35]} 11. Be3 {[%emt 0:12:55] C07: French Tarrasch: 3...c5, 4 Ngf3 and 4 exd5 Qxd5.} O-O {[%emt 0:08:24]} 12. Qf3 {[%emt 0:01:11]} Qc7 {[%emt 0:03:16]} 13. Bb3 {[%emt 0:01:03] The position is equal.} Bd7 {[%emt 0:04:18]} 14. h3 {[%emt 0:04:44] [#]} a5 $146 {[%emt 0:03:53] Hoping for ...a4.} ({Predecessor:} 14... Rac8 15. Rad1 b5 16. Rfe1 Rfe8 17. Bf4 Qb6 18. a3 b4 19. axb4 Bxb4 20. c3 Be7 {1-0 (40) Onischuk,A (2610)-Gulko,B (2585) New York 1998 CBM 064 [Kortschnoj,V]}) 15. a4 {[%emt 0:00:41]} Rfd8 {[%emt 0:12:41]} 16. Rfd1 {[%emt 0:04:09]} Be8 {[%emt 0:07:13]} 17. Nb5 {[%emt 0:21:31]} Qc6 {[%emt 0:20:34]} 18. Qg3 {[%emt 0:01:37]} Ne4 {[%emt 0:08:59]} 19. Qc7 {[%emt 0:02:11]} Rxd1+ {[%emt 0:02:15]} 20. Rxd1 {[%emt 0:00:07]} Bc5 {[%emt 0:00:15]} 21. Qf4 {[%emt 0:29:36] Black must now prevent Nd4.} Bxe3 {[%emt 0:04:53]} 22. Qxe3 {[%emt 0:00:01]} Nc5 {[%emt 0:00:28]} 23. c4 {[%emt 0:01:45]} b6 {[%emt 0:05:17]} 24. Bc2 {[%emt 0:00:22]} Qb7 {[%emt 0:01:32]} 25. Rd6 {[%emt 0:02:24]} Bxb5 {[%emt 0:03:20]} 26. axb5 {[%emt 0:00:22]} Qc7 {[%emt 0:01:44]} 27. Qd4 {[%emt 0:01:05]} Rb8 {[%emt 0:00:39]} 28. h4 {[%emt 0:01:20]} (28. Rc6 $14 {is superior.} Qe7 29. h4) 28... Qe7 {[%emt 0:01:52]} (28... Re8 $11) 29. g3 $14 {[%emt 0:02:10]} Qf6 {[%emt 0:02:30]} 30. Qxf6 {[%emt 0:01:08]} (30. Rxb6 {with more complications.} Rxb6 31. Qxc5 Rb8 32. b3) 30... gxf6 {[%emt 0:00:06][%mdl 4096] Endgame KRB-KRN} 31. g4 {[%emt 0:00:04]} h6 {[%emt 0:01:19]} 32. Kg2 {[%emt 0:04:23]} (32. f4 $14) 32... Kf8 $1 $11 {[%emt 0:00:28]} 33. Kg3 {[%emt 0:00:21]} Ke7 {[%emt 0:01:29]} 34. Rc6 {[%emt 0:00:01]} Nd7 {[%emt 0:01:01]} 35. Rc7 {[%emt 0:01:24]} Kd6 {[%emt 0:00:55]} 36. Rc6+ {[%emt 0:00:21]} Ke7 {[%emt 0:00:05]} 37. Rc7 {[%emt 0:00:03]} Kd6 {[%emt 0:00:04]} 38. Ra7 {[%emt 0:00:10]} Rg8 {[%emt 0:00:53] White should prevent ...f5.} 39. Kf4 {[%emt 0:01:14] Prevents f5.} (39. f3 $11) 39... Ne5 {[%emt 0:04:00]} (39... Rc8 $1 $17 {[%cal Rc8c4]} 40. b3 Rd8) 40. f3 $15 {[%emt 0:00:00]} Rb8 {[%emt 0:00:00]} (40... Kc5 $1 $15 41. Rc7+ Kb4) 41. b3 $11 {[%emt 0:10:18]} Rg8 {[%emt 0:06:03]} 42. Rb7 {[%emt 0:04:04]} Kc5 {[%emt 0:00:52]} 43. Ke4 {[%emt 0:03:19]} (43. Bh7 $11 {keeps the balance.} Rd8 44. Be4) 43... Rd8 $17 {[%emt 0:03:59]} 44. g5 {[%emt 0:04:03]} (44. Rc7+ $17 Kb4 45. c5) 44... hxg5 $19 {[%emt 0:00:29]} 45. hxg5 {[%emt 0:00:03] [#]} Rd7 $2 {[%emt 0:09:43]} ({Not} 45... Rd4+ 46. Ke3 $11) ({Black should play} 45... Nd7 $1 $19 46. gxf6 Nxf6+ 47. Ke3 Nd7) 46. Rb8 $2 {[%emt 0:01:06][%mdl 8192] This move loses the game for White.} (46. Rxd7 $11 {and White is okay.} Nxd7 47. f4) 46... Rd2 {[%emt 0:00:52] aiming for ...Re2+.} ({And not} 46... Rd4+ 47. Ke3 Rh4 48. Rc8+ Kb4 49. gxf6 $15) 47. gxf6 {[%emt 0:09:09] [#]} Nd7 {[%emt 0:00:12] Black is clearly winning.} 48. Rb7 {[%emt 0:00:28][%cal Oe4e3] Strongly threatening Ke3!} Kd6 {[%emt 0:02:54]} 49. Bb1 {[%emt 0:01:35]} Rb2 {[%emt 0:00:19] Weighted Error Value: White=0.45/Black=0.14 (very precise)} 0-1

[Event "VII Totalizator Sportowy 2022"]
[Site "Bydgoszcz"]
[Date "2022.07.02"]
[Round "8.9"]
[White "Kacprzak, Kacper"]
[Black "Sieciechowicz, Marcin"]
[Result "1/2-1/2"]
[ECO "E73"]
[WhiteElo "2238"]
[BlackElo "2388"]
[Annotator "TA"]
[PlyCount "32"]
[EventDate "2022.06.25"]
[EventType "swiss"]
[EventCountry "POL"]
[SourceTitle "playchess.com"]
[Source "ChessBase"]
[SourceQuality "1"]
[TimeControl "40/5400+30:1800+30"]

{[%evp 11,32,36,62,55,67,42,95,68,69,74,101,97,112,110,103,101,107,127,127,113,154,0,104]} 1. c4 {[%emt 0:00:03]} Nf6 {[%emt 0:00:51]} 2. Nc3 {[%emt 0:00:10]} g6 {[%emt 0:00:19]} 3. e4 {[%emt 0:00:06]} d6 {[%emt 0:00:13]} 4. d4 {[%emt 0:00:07]} Bg7 {[%emt 0:00:16]} 5. Be2 {[%emt 0:00:07]} O-O {[%emt 0:00:10]} 6. h4 {[%emt 0:00:06]} e5 {[%emt 0:03:26]} 7. d5 {[%emt 0:00:08] E73: King's Indian: Averbakh Variation without 6...c5.} h5 {[%emt 0:00:19]} 8. Bg5 {[%emt 0:01:32]} Qe8 {[%emt 0:02:23]} (8... c6 $14) 9. Qd2 {[%emt 0:02:10] [#] White is better.} Nh7 $146 {[%emt 0:06:51]} ({Predecessor:} 9... Kh7 10. f3 Na6 11. Nh3 Nc5 12. O-O-O a6 13. Bxf6 Bxf6 14. Ng5+ Kh8 15. g4 Bg7 16. gxh5 gxh5 {½-½ (28) Seiffert,R-Pakulla,R Jena 1953}) 10. Be3 {[%emt 0:12:56] White is more active.} Na6 {[%emt 0:07:04][%cal Bb8a6,Ba6c5,Bc5a4][%mdl 32]} 11. Nh3 {[%emt 0:07:17]} Bd7 {[%emt 0:03:18]} 12. O-O-O {[%emt 0:10:06]} Nc5 {[%emt 0:06:51]} 13. f3 {[%emt 0:06:29]} f5 {[%emt 0:06:46]} 14. exf5 {[%emt 0:06:17]} gxf5 15. Rdg1 {g4 is the strong threat.} Na4 {[#]} 16. Rd1 (16. Nxa4 $142 $1 {aiming for Nc3.} Bxa4 17. g3) 16... Nc5 {Weighted Error Value: White=0.19 (very precise) /Black=0.17 (very precise)} 1/2-1/2

[Event "VII Totalizator Sportowy 2022"]
[Site "Bydgoszcz"]
[Date "2022.07.02"]
[Round "8.10"]
[White "Ulasevich, Sergei"]
[Black "Chojnacki, Krzysztof"]
[Result "1/2-1/2"]
[ECO "C84"]
[WhiteElo "2217"]
[BlackElo "2371"]
[Annotator "TA"]
[PlyCount "108"]
[EventDate "2022.06.25"]
[EventType "swiss"]
[EventCountry "POL"]
[SourceTitle "playchess.com"]
[Source "ChessBase"]
[SourceQuality "1"]
[TimeControl "40/5400+30:1800+30"]

{[%evp 15,108,20,17,22,17,21,22,16,29,3,20,10,22,23,33,29,29,22,34,35,68,61,86,86,84,82,120,113,109,92,107,108,114,50,50,52,95,83,83,61,61,44,45,34,43,33,16,26,46,0,0,0,7,0,0,-16,0,-58,-52,-72,-75,-92,-95,-87,-59,-71,-17,-49,-40,-206,0,-14,-32,-25,-23,-16,-30,-39,-35,-39,-40,-40,-45,-51,0,0,0,0,0,-1,0,0,0,0,0]} 1. e4 {[%emt 0:00:03]} e5 {[%emt 0:00:08]} 2. Nf3 {[%emt 0:00:06]} Nc6 {[%emt 0:00:08]} 3. Bb5 {[%emt 0:00:29]} a6 {[%emt 0:00:12]} 4. Ba4 {[%emt 0:00:06]} Nf6 {[%emt 0:00:13]} 5. O-O {[%emt 0:00:09]} Be7 {[%emt 0:00:07]} 6. d3 {[%emt 0:00:05]} b5 {[%emt 0:00:49]} 7. Bb3 {[%emt 0:00:05]} d6 {[%emt 0:00:23]} 8. c3 {[%emt 0:00:13]} O-O {[%emt 0:03:36]} 9. a4 {[%emt 0:00:16] C84: Closed Ruy Lopez: Unusual White 6th moves.} Bd7 {[%emt 0:02:14]} 10. Bc2 {[%emt 0:00:10]} Re8 {[%emt 0:01:13]} 11. Re1 {[%emt 0:00:21]} h6 {[%emt 0:00:45]} 12. h3 {[%emt 0:01:17]} Bf8 {[%emt 0:03:04]} 13. Nbd2 {[%emt 0:00:14][%cal Bb1d2,Bd2f1,Bf1e3][%mdl 32]} Ne7 {[%emt 0:03:06] 13...Ne7 has become a bit dusty these days.} 14. d4 {[%emt 0:02:23]} Ng6 {[%emt 0:03:25]} 15. Nf1 {[%emt 0:00:53]} c5 {[%emt 0:08:47]} 16. d5 {[%emt 0:01:02]} Nh5 {[%emt 0:02:17]} 17. Kh2 {[%emt 0:01:56] [#]} Nhf4 $146 {[%emt 0:08:26]} ({Predecessor:} 17... Rb8 18. Ng3 Nf6 19. Be3 Qc7 20. Qd2 Rec8 21. Rec1 b4 22. c4 a5 23. b3 Be7 {1-0 (32) Krause,P (2410)-Ter Steeg,R (800) LSS email 2014}) 18. Ng1 {[%emt 0:02:12]} Ne7 {[%emt 0:12:49]} (18... Qg5 19. g3 $16) 19. g3 {[%emt 0:02:19]} Nfg6 {[%emt 0:00:50]} 20. Ne3 {[%emt 0:02:58]} Kh8 {[%emt 0:04:02]} 21. Qf3 {[%emt 0:04:51]} Kg8 {[%emt 0:05:08]} 22. Bd2 {[%emt 0:02:41]} Qc7 {[%emt 0:00:40]} 23. Ra2 {[%emt 0:01:16]} Rab8 {[%emt 0:02:42]} 24. axb5 {[%emt 0:01:26]} (24. h4 $16) 24... axb5 $14 {[%emt 0:03:47]} 25. Rea1 {[%emt 0:04:21]} c4 {[%emt 0:01:39]} 26. h4 {[%emt 0:08:53][%cal Bh3h4,Bh4h5][%mdl 32]} Nc8 {[%emt 0:01:57][%cal Be7c8,Bc8b6,Bb6a4,Ba4c5,Bc5d3][%mdl 32]} 27. h5 {[%emt 0:02:05]} Nge7 {[%emt 0:01:42]} 28. Bd1 {[%emt 0:11:56] White is more active.} Nb6 {[%emt 0:01:38]} 29. Qg2 {[%emt 0:07:03]} Ra8 {[%emt 0:05:02]} 30. Nf3 {[%emt 0:06:07]} Rxa2 {[%emt 0:04:53]} 31. Rxa2 {[%emt 0:00:02]} Qb7 {[%emt 0:00:07]} 32. Ra1 {[%emt 0:05:28]} (32. g4 $1 $14 {is more appropriate.}) 32... Ra8 $11 {[%emt 0:06:34]} 33. Rb1 {[%emt 0:00:05]} Na4 {[%emt 0:00:44]} 34. Nh4 {[%emt 0:06:29]} Nc5 {[%emt 0:02:10]} 35. f4 {[%emt 0:02:07]} Nd3 {[%emt 0:01:55]} 36. Be2 {[%emt 0:10:52]} (36. fxe5 $11 Nxe5 37. Be2) 36... exf4 $15 {[%emt 0:01:41]} 37. Nc2 {[%emt 0:00:08] [#]} f5 $1 {[%emt 0:02:19]} 38. Bxd3 {[%emt 0:06:12] Hoping for Be2.} cxd3 {[%emt 0:00:12]} 39. Nb4 {[%emt 0:00:02]} Re8 {[%emt 0:04:40] White must now prevent ...fxe4.} 40. Re1 {[%emt 0:00:00]} fxe4 {[%emt 0:00:00]} (40... fxg3+ $17 41. Kxg3 fxe4 42. Rxe4 Qa8) 41. Rxe4 $11 {[%emt 0:11:20]} fxg3+ {[%emt 0:04:39]} 42. Qxg3 $2 {[%emt 0:19:45] [#]} ({White has to play} 42. Kxg3 $15 Qa8 43. Rf4) 42... Qc8 $2 {[%emt 0:03:45]} (42... Nxd5 $19 43. Rxe8 Bxe8) 43. Qxd3 {[%emt 0:01:27]} Bg4 {[%emt 0:09:29] Prevents Qe2.} 44. Bxh6 {[%emt 0:03:28][%cal Od3g3]} Bxh5 {[%emt 0:00:52]} ({Don't do} 44... gxh6 45. Qg3 Bg7 46. Qxg4 (46. Rxg4 Nf5 $16) 46... Qxg4 47. Rxg4 $16) 45. Bg5 {[%emt 0:02:52]} Ng6 {[%emt 0:02:52][%cal Be7g6,Bg6e5,Be5g4][%mdl 32]} 46. Rxe8 {[%emt 0:01:08]} Qxe8 {[%emt 0:05:00]} 47. Nc6 {[%emt 0:00:19]} Ne5 {[%emt 0:01:50]} 48. Qxb5 {[%emt 0:00:29][%cal Oc6e7]} Ng4+ {[%emt 0:00:39]} 49. Kg1 $1 {[%emt 0:02:49][%cal Oc6e7]} Qe1+ {[%emt 0:03:11]} ({Better is} 49... Qe4 $15 50. Qf1 Qxd5) 50. Qf1 {[%emt 0:00:02] The position is equal.} Qg3+ {[%emt 0:00:15]} 51. Qg2 {[%emt 0:00:02] Really sharp!} Qd3 {[%emt 0:02:44] Threatening ...Qb1+.} 52. Qd2 {[%emt 0:00:31]} Qg3+ {[%emt 0:00:47]} 53. Qg2 {[%emt 0:00:06]} Qe1+ {[%emt 0:00:39]} 54. Qf1 {[%emt 0:00:03]} Qg3+ {[%emt 0:00:41] Weighted Error Value: White=0.14 (very precise) /Black=0.16 (very precise)} 1/2-1/2

[Event "VII Totalizator Sportowy 2022"]
[Site "Bydgoszcz"]
[Date "2022.07.02"]
[Round "8.11"]
[White "Zebracki, Tomasz"]
[Black "Malek, Jan"]
[Result "1/2-1/2"]
[ECO "A45"]
[WhiteElo "2200"]
[BlackElo "2316"]
[Annotator "TA"]
[PlyCount "80"]
[EventDate "2022.06.25"]
[EventType "swiss"]
[EventCountry "POL"]
[SourceTitle "playchess.com"]
[Source "ChessBase"]
[SourceQuality "1"]
[TimeControl "40/5400+30:1800+30"]

{[%evp 9,80,0,0,0,0,0,0,-22,6,0,0,0,0,8,-1,4,0,-19,-2,0,0,-10,18,0,0,0,2,0,0,-47,0,0,0,0,16,20,27,31,21,16,17,13,455,44,87,79,86,60,97,89,105,105,105,105,121,112,114,110,104,85,86,10,31,15,20,0,33,0,0,0,0,0,0]} 1. d4 {[%emt 0:00:03]} Nf6 {[%emt 0:00:11]} 2. Bf4 {[%emt 0:00:05]} d5 {[%emt 0:00:05]} 3. e3 {[%emt 0:00:11]} c5 {[%emt 0:00:06]} 4. Nf3 {[%emt 0:00:25]} Nc6 {[%emt 0:00:06]} 5. Nbd2 {[%emt 0:00:32]} Qb6 {[%emt 0:00:07][%cal Rc5d4]} 6. dxc5 {[%emt 0:00:30] D02: 1 d4 d5 2 Nf3 sidelines, including 2...Nf6 3 g3 and 2...Nf6 3 Bf4.} Qxb2 {[%emt 0:00:07]} 7. Rb1 {[%emt 0:00:07]} Qc3 {[%emt 0:00:05]} 8. Bb5 {[%emt 0:00:12]} g6 $1 {[%emt 0:00:08][%mdl 4] is now more promising than 8...e6.} (8... e6 $5 {[%cal Rf8c5]}) 9. O-O {[%emt 0:08:00] [#] aiming for Be5.} Bg7 $1 {[%emt 0:00:19]} 10. Nb3 {[%emt 0:05:55][%cal Oe3e4] Black must now prevent e4!} O-O {[%emt 0:02:19]} 11. Bxc6 {[%emt 0:06:25]} bxc6 {[%emt 0:00:12]} 12. Be5 {[%emt 0:00:14]} Qc4 {[%emt 0:00:54] [#]} 13. Qd3 $146 {[%emt 0:05:34]} ({Predecessor:} 13. Qd4 Qa6 14. Rfe1 Re8 15. h3 Bd7 16. Qb2 Rad8 17. Nbd4 Bf8 18. Qb7 Qxb7 19. Rxb7 {1-0 (63) Nakamura,H (2750)-Grischuk,A (2742) Chess.com INT 2022}) 13... Ba6 {[%emt 0:16:54]} 14. Rfd1 {[%emt 0:01:10]} Qa4 {[%emt 0:07:33][%csl LRa2,LRd3] Inhibits Na5.} 15. Qd4 {[%emt 0:04:34]} Bc4 {[%emt 0:00:35]} (15... Qxa2 $2 16. Rb2 (16. Ra1 Qxc2 17. Rxa6 Qxb3 $15) 16... Qa3 17. Ra1 Qxa1+ 18. Nxa1 $18) 16. Nfd2 {[%emt 0:20:50]} Bb5 {[%emt 0:03:28]} 17. Rdc1 {[%emt 0:09:57]} Qa6 {[%emt 0:04:39]} (17... Qxa2 $2 18. Ra1 Qxa1 19. Qxa1 $18) 18. Qa1 {[%emt 0:04:15]} Rfc8 {[%emt 0:03:36]} 19. Nd4 {[%emt 0:02:51]} (19. Nf3 $11) 19... Bf8 {[%emt 0:00:57]} (19... Ne4 $15 20. c4 {[#]} dxc4 $1 21. Nxe4 Bxe5) 20. Bxf6 $11 {[%emt 0:05:14]} exf6 {[%emt 0:01:00]} 21. Qc3 {[%emt 0:00:40]} Rab8 {[%emt 0:12:43]} 22. Rb3 {[%emt 0:04:11][%cal Bb1b3,Bb3a3,Ba3a5][%mdl 32]} Bc4 {[%emt 0:18:16]} (22... Qxa2 $2 23. Ra3 Qxa3 24. Qxa3 $18) 23. Ra3 {[%emt 0:00:01]} Qb7 {[%emt 0:00:13]} 24. Nxc4 {[%emt 0:00:17]} dxc4 {[%emt 0:00:05]} 25. Ra5 {[%emt 0:00:29]} ({Don't blunder} 25. Qxc4 $2 Qb2 26. Rd1 Qxa3 $19) 25... Qb1 $2 {[%emt 0:02:13][%mdl 8192]} 26. Rf1 $2 {[%emt 0:00:08]} (26. Nb3 $1 $18 Rxb3 27. cxb3) 26... Qb2 {[%emt 0:01:07]} 27. Qxc4 {[%emt 0:01:49]} Rc7 {[%emt 0:00:14]} 28. g3 {[%emt 0:00:20]} f5 {[%emt 0:02:14]} 29. Rd1 {[%emt 0:04:49]} Rd7 {[%emt 0:03:24][%cal Ob8b5]} 30. Qa4 {[%emt 0:01:25] Prevents Rb5.} Qb7 {[%emt 0:01:52]} 31. Rd3 {[%emt 0:00:44]} Rc8 {[%emt 0:09:07][%cal Bb8c8,Bc8c7,Bc7d7][%mdl 32]} (31... Qb1+ $2 32. Kg2 $18) 32. Ra3 {[%emt 0:00:01]} Rcc7 {[%emt 0:03:15]} 33. Qc4 {[%emt 0:01:20]} Qc8 {[%emt 0:00:38]} 34. Ra6 {[%emt 0:01:09] White is more active.} Qe8 {[%emt 0:00:01]} 35. Rb3 {[%emt 0:01:02]} (35. Nf3 $16) 35... Rd5 {[%emt 0:00:19]} 36. Ra5 {[%emt 0:01:23]} Qe4 {[%emt 0:02:18]} 37. Rb8 {[%emt 0:00:48]} Rcd7 {[%emt 0:03:22][%cal Rd5d4] Strongly threatening ...Rxd4.} 38. c3 {[%emt 0:03:22]} f4 {[%emt 0:01:16] The position is equal.} 39. gxf4 {[%emt 0:01:20]} Rg5+ $1 {[%emt 0:01:25]} 40. fxg5 {[%emt 0:00:00]} Qg4+ {[%emt 0:00:00] Blacks defense is rewarded with a draw.  Weighted Error Value: White=0.27 (precise) /Black=0.29 (precise)} 1/2-1/2